fUSD/lending_fUSD_20241219
["ID","MTS","AMOUNT","RATE_DAILY","PERIOD"]
[345984449,1734597038857,-500.0,0.00023782,4]
[345984450,1734597038866,-608.37,0.00023782,4]
[345984451,1734597038875,-500.0,0.00023782,4]
[345984452,1734597038884,-500.0,0.00023782,4]
[345984453,1734597038895,-500.0,0.00023782,4]
[345984454,1734597038904,-500.0,0.00023782,4]
[345984455,1734597038913,-500.0,0.00023782,4]
[345984456,1734597038923,-500.0,0.00023782,4]
[345984457,1734597038931,-560.3,0.00023782,4]
[345984458,1734597038941,-507.9,0.00023782,4]
[345984459,1734597038950,-500.0,0.00023782,4]
[345984460,1734597038959,-863.24,0.00023782,4]
[345984461,1734597038968,-500.0,0.00023782,4]
[345984462,1734597038977,-500.0,0.00023782,4]
[345984463,1734597038986,-1569.63,0.00023782,4]
[345984464,1734597038995,-500.0,0.00023782,4]
[345984465,1734597039005,-645.81,0.00023782,4]
[345984466,1734597039015,-1842.92,0.00023782,4]
[345984467,1734597039024,-500.0,0.00023782,4]
[345984468,1734597039034,-534.35,0.00023782,4]
[345984469,1734597039043,-500.0,0.00023782,4]
[345984470,1734597039052,-173.15,0.00023832,4]
[345984471,1734597039061,-614.06090252,0.00023832,4]
[345984472,1734597039071,-268.87520461,0.00023832,4]
[345984473,1734597039081,-500.0,0.00023832,4]
[345984474,1734597039090,-594.39149016,0.00023832,4]
[345984475,1734597039099,-337.00984229,0.00023832,4]
[345984476,1734597039111,-162.99015771,0.00023832,4]
[345984477,1734597039120,-381.13558221,0.00023832,4]
[345984478,1734597039134,-359.53441779,0.00023832,4]
[345984479,1734597039145,-500.0,0.00023832,4]
[345984480,1734597039154,-500.0,0.00023833,4]
[345984481,1734597039163,-500.0,0.00023833,2]
[345984482,1734597039172,-500.0,0.00023833,4]
[345984483,1734597039182,-347.47228491,0.00023833,4]
[345984484,1734597039552,-500.0,0.00021917,4]
[345984485,1734597039562,-500.0,0.00022191,4]
[345984486,1734597039572,-500.0,0.00022465,4]
[345984487,1734597039582,-500.0,0.00022739,4]
[345984488,1734597039592,-500.0,0.00023013,4]
[345984489,1734597039602,-500.0,0.00023287,4]
[345984490,1734597039611,-500.0,0.00023561,4]
[345984491,1734597039621,-152.52771509,0.00023833,4]
[345984492,1734597039631,-500.0,0.00023833,4]
[345984493,1734597039640,-500.0,0.00023835,4]
[345984494,1734597039649,-800.2,0.00023835,4]
[345984495,1734597039660,-500.0,0.00023835,4]
[345984496,1734597039670,-509.9,0.00023835,4]
[345984497,1734597039681,-500.0,0.00023835,4]
[345984498,1734597039691,-500.0,0.00023835,4]
[345984499,1734597039702,-500.0,0.00023835,4]
[345984500,1734597039712,-500.0,0.00023835,4]
[345984501,1734597039722,-835.0,0.00023864,2]
[345984502,1734597039732,-200.24,0.00023864,2]
[345984503,1734597039741,-203.61,0.00023865,2]
[345984504,1734597039751,-150.0,0.00023999,2]
[345984505,1734597039761,-500.0,0.00023999,2]
[345984506,1734597039770,-324.41290911,0.00024,10]
[345984507,1734597039780,-192324.10937582,0.00024,2]
[345984508,1734597039792,-441.98652181,0.00024,2]
[345984509,1734597039803,-500.0,0.00024008,4]
[345984510,1734597039812,-650.58,0.00024008,4]
[345984511,1734597039821,-500.0,0.00024008,4]
[345984512,1734597039831,-1042.64,0.00024008,4]
[345984513,1734597039841,-500.0,0.00024008,4]
[345984514,1734597039852,-181.53914207,0.00024024,2]
[345984515,1734597039862,-500.0,0.00024055,4]
[345984516,1734597039871,-500.0,0.00024055,4]
[345984517,1734597039881,-500.0,0.00024055,4]
[345984518,1734597039894,-500.0,0.00024055,4]
[345984519,1734597039903,-500.0,0.00024055,4]
[345984520,1734597039915,-500.0,0.00024055,4]
[345984521,1734597039930,-500.0,0.00024055,4]
[345984522,1734597039941,-1133.62,0.00024055,4]
[345984523,1734597039952,-500.0,0.00024055,4]
[345984524,1734597039962,-500.0,0.00024055,4]
[345984525,1734597039972,-362.23,0.00024055,4]
[345984526,1734597039983,-500.0,0.00024055,4]
[345984527,1734597039993,-796.05,0.00024055,4]
[345984528,1734597040003,-546.13,0.00024055,4]
[345984529,1734597040013,-500.0,0.00024055,4]
[345984530,1734597040023,-500.0,0.00024056,4]
[345984531,1734597040034,-500.0,0.00024056,4]
[345984532,1734597040044,-500.0,0.00024056,4]
[345984533,1734597040056,-500.0,0.00024056,4]
[345984534,1734597040066,-345.32445467,0.00024056,4]
[345984535,1734597040075,-500.0,0.00024056,4]
[345984536,1734597040086,-500.0,0.00024056,4]
[345984537,1734597040096,-500.0,0.00024056,4]
[345984539,1734597040105,-227.98981053,0.00024056,4]
[345984541,1734597040115,-500.0,0.00024056,4]
[345984544,1734597040125,-500.0,0.00024056,4]
[345984546,1734597040135,-608.37,0.00024056,4]
[345984548,1734597040145,-500.0,0.00024056,4]
[345984549,1734597040155,-500.0,0.00024056,4]
[345984550,1734597040165,-500.0,0.00024056,4]
[345984551,1734597040175,-500.0,0.00024056,4]
[345984552,1734597040185,-500.0,0.00024056,4]
[345984553,1734597040194,-500.0,0.00024056,4]
[345984554,1734597040203,-560.3,0.00024056,4]
[345984555,1734597040219,-156.3868629,0.00024056,4]
[345984556,1734597040231,-351.5131371,0.00024056,4]
[345984557,1734597040241,-500.0,0.00024056,4]
[345984558,1734597040251,-863.24,0.00024056,4]
[345984559,1734597040260,-500.0,0.00024056,4]
[345984560,1734597040271,-527.03995511,0.00024056,4]
[345984561,1734597040280,-1569.63,0.00024056,4]
[345984562,1734597040292,-500.0,0.00024056,4]
[345984563,1734597040302,-645.81,0.00024056,4]
[345984564,1734597040312,-1842.92,0.00024056,4]
[345984565,1734597040321,-500.0,0.00024056,4]
[345984566,1734597040331,-534.35,0.00024056,4]
[345984567,1734597040341,-500.0,0.00024056,4]
[345984568,1734597040351,-5765.1900354,0.00024075,2]
[345984569,1734597040361,-6923.09840371,0.00024076,2]
[345984574,1734597043640,-1263.99,0.00021102,2]
[345984575,1734597043650,-500.0,0.00021917,4]
[345984576,1734597043661,-589.14345388,0.00022191,4]
[345984577,1734597043671,-1263.99,0.00023366,2]
[345984578,1734597043681,-18076.90159629,0.00024076,2]
[345984579,1734597043690,-5000.0,0.00024096,2]
[345984580,1734597043700,-740.67,0.00024106,4]
[345984581,1734597043710,-500.0,0.00024106,4]
[345984582,1734597043720,-500.0,0.00024107,4]
[345984583,1734597043729,-500.0,0.00024107,2]
[345984584,1734597043739,-500.0,0.00024107,4]
[345984585,1734597043748,-606.06666068,0.00024107,4]
[345984586,1734597043757,-463.23828916,0.00024107,4]
[345984587,1734597043860,-36.76171084,0.00024107,4]
[345984588,1734597043870,-500.0,0.00024109,4]
[345984589,1734597043880,-800.2,0.00024109,4]
[345984590,1734597043891,-447.47621069,0.00024109,4]
[345984605,1734597046340,-153.0,0.00022045,2]
[345984606,1734597046350,-648.09,0.00022686,4]
[345984607,1734597046359,-648.09,0.0002296,4]
[345984608,1734597046368,-648.09,0.00023234,4]
[345984609,1734597046378,-150.0,0.0002337,2]
[345984610,1734597046388,-150.0,0.0002337,2]
[345984611,1734597046397,-648.09,0.00023508,4]
[345984612,1734597046410,-648.09,0.00023782,4]
[345984613,1734597046420,-52.52378931,0.00024109,4]
[345984614,1734597046430,-509.9,0.00024109,4]
[345984615,1734597046440,-36.82556069,0.00024109,4]
[345984616,1734597046452,-463.17443931,0.00024109,4]
[345984617,1734597046461,-500.0,0.00024109,4]
[345984618,1734597046470,-500.0,0.00024109,4]
[345984619,1734597046479,-500.0,0.00024109,4]
[345984620,1734597046489,-8210.33524725,0.00024112,2]
[345984621,1734597046500,-958.56,0.00024112,2]
[345984622,1734597046512,-1105.2274079,0.00024112,2]
[345984623,1734597046560,-648.09,0.00024056,4]
[345984624,1734597046570,-134.34423277,0.00024112,2]
[345984628,1734597440503,450.0,0.00013,2]
[345984629,1734597441637,500.0,0.00015,2]
[345984630,1734597442634,550.0,0.00017,2]
[345984632,1734597583038,154.07,0.00010137,2]
[345984633,1734597583447,154.07,0.00017184,2]
[345984635,1734597794052,176.22,0.00013699,2]
[345984644,1734598231756,-542.05781538,0.00019,2]
[345984651,1734598237772,-57.94218462,0.00019,2]
[345984652,1734598237783,-1295.06,0.00020202,2]
[345984653,1734598237794,-650.0,0.00021,2]
[345984654,1734598237804,-500.0,0.00021164,2]
[345984655,1734598237814,-1987.0,0.000218,3]
[345984656,1734598237825,-153.0,0.00021883,2]
[345984657,1734598237834,-453.95675433,0.00021917,4]
[345984658,1734598237843,-500.0,0.00021917,2]
[345984659,1734598237854,-338.33365496,0.00021917,4]
[345984660,1734598237865,-500.0,0.00021917,4]
[345984661,1734598237876,-500.0,0.00021917,4]
[345984662,1734598237887,-500.0,0.00021917,4]
[345984663,1734598237898,-505.56565054,0.00021917,4]
[345984664,1734598237909,-500.0,0.00021917,4]
[345984665,1734598237919,-500.0,0.00021917,4]
[345984666,1734598237931,-500.0,0.00021917,4]
[345984667,1734598237942,-500.0,0.00021917,4]
[345984669,1734598237952,-500.0,0.00021917,4]
[345984671,1734598237963,-500.0,0.00021917,2]
[345984672,1734598237977,-500.0,0.00021917,2]
[345984673,1734598237988,-229.83769732,0.00021917,4]
[345984674,1734598237999,-500.0,0.00021917,4]
[345984675,1734598238010,-502.54781468,0.00022,2]
[345984676,1734598238021,-486.19,0.00022047,2]
[345984677,1734598238031,-250.0,0.00022056,2]
[345984678,1734598238042,-174.45,0.00022144,2]
[345984679,1734598238053,-4000.0,0.00022188,2]
[345984680,1734598238065,-1264.0,0.0002219,2]
[345984681,1734598238075,-569.775,0.0002219,2]
[345984682,1734598238085,-1896.0,0.0002219,2]
[345984683,1734598238096,-817.0,0.0002219,2]
[345984684,1734598238107,-928.0,0.0002219,2]
[345984685,1734598238117,-1254.0,0.0002219,2]
[345984686,1734598238127,-3766.0,0.0002219,2]
[345984687,1734598238138,-3071.063,0.0002219,2]
[345984688,1734598238148,-535.0,0.0002219,2]
[345984689,1734598238159,-150.244,0.0002219,2]
[345984690,1734598238168,-150.0,0.0002219,2]
[345984691,1734598238179,-623.401,0.0002219,2]
[345984692,1734598238190,-276.367,0.0002219,2]
[345984693,1734598238200,-500.0,0.00022191,2]
[345984694,1734598238210,-500.0,0.00022191,4]
[345984695,1734598238224,-500.0,0.00022191,2]
[345984696,1734598238240,-500.0,0.00022191,2]
[345984697,1734598238250,-510.02047245,0.00022191,4]
[345984698,1734598238261,-314.98,0.00022193,2]
[345984699,1734598238272,-162.05,0.00022397,30]
[345984700,1734598238283,-1000.0,0.00022407,2]
[345984701,1734598238294,-566.12377539,0.00022465,2]
[345984702,1734598238305,-500.0,0.00022465,4]
[345984703,1734598238315,-500.0,0.00022465,2]
[345984704,1734598238325,-500.0,0.00022465,2]
[345984705,1734598238335,-1295.06,0.00022466,2]
[345984706,1734598238345,-1018.04,0.00022543,2]
[345984707,1734598238355,-364.93,0.00022548,2]
[345984708,1734598238364,-361.97,0.00022548,2]
[345984709,1734598238373,-8968.46038563,0.00022622,2]
[345984716,1734598242693,-1018.2,0.00022622,2]
[345984721,1734598245528,-635.26783522,0.00022622,2]
[345984722,1734598245746,-150.0,0.0002219,2]
[345984723,1734598245756,-110.06050159,0.00022622,2]
[345984724,1734598245769,-280.52603968,0.00022622,2]
[345984725,1734598245782,-423.9,0.00022622,2]
[345984726,1734598245794,-1277.199996,0.00022622,2]
[345984727,1734598245806,-1684.3624554,0.00022622,2]
[345984728,1734598245819,-1268.1,0.00022622,2]
[345984729,1734598245832,-1216.1,0.00022622,2]
[345984730,1734598245844,-7017.82278648,0.00022622,2]
[345984731,1734598245855,-640.44864667,0.00022686,2]
[345984732,1734598245865,-500.0,0.00022686,2]
[345984733,1734598245875,-166.68091234,0.00022739,4]
[345984734,1734598245885,-9.82966876,0.00022739,2]
[345984742,1734598497557,182.67,0.00010137,2]
[345984743,1734598497772,182.67,0.00016813,2]
[345984745,1734599027526,3315.33245227,0.00024,120]
[345984754,1734599249278,450.0,0.00013,2]
[345984755,1734599250351,500.0,0.00015,2]
[345984756,1734599251443,550.0,0.00017,2]
[345984760,1734599383143,160.69,0.00010137,2]
[345984781,1734599431755,-1271.82,0.00020415,2]
[345984782,1734599431764,-300.0,0.00021164,2]
[345984783,1734599431773,-150.0,0.00021602,2]
[345984784,1734599431782,-1000.0,0.00022,2]
[345984785,1734599431791,-1000.0,0.00022093,2]
[345984786,1734599431800,-11008.83965137,0.00022103,2]
[345984790,1734599437603,-5033.89728576,0.00022103,2]
[345984791,1734599437659,-9948.56190654,0.00022103,2]
[345984792,1734599437875,-500.16995089,0.00022103,2]
[345984803,1734599440238,-1207.72962236,0.00022103,2]
[345984804,1734599440249,-2716.64798491,0.00022103,2]
[345984805,1734599440258,-227.972,0.0002219,2]
[345984806,1734599440268,-150.421,0.0002219,2]
[345984807,1734599440278,-165.2,0.00022201,2]
[345984808,1734599440287,-937.12,0.00022293,2]
[345984809,1734599440297,-250.0,0.00022331,2]
[345984810,1734599440309,-2403.99,0.00022457,2]
[345984811,1734599440319,-250.0,0.00022489,2]
[345984812,1734599440330,-7777.98887834,0.000225,4]
[345984813,1734599440403,-10326.30112166,0.000225,4]
[345984814,1734599440412,-1687.94703953,0.0002252,2]
[345984815,1734599440421,-150.0,0.00022548,2]
[345984816,1734599440430,-150.0,0.00022548,2]
[345984817,1734599440439,-501.5,0.00022633,2]
[345984818,1734599440449,-1271.82,0.00022679,2]
[345984820,1734599440458,-726.52,0.000227,2]
[345984821,1734599440467,-791.51,0.000227,2]
[345984822,1734599440477,-150.0,0.000227,2]
[345984823,1734599440486,-975.22,0.000227,2]
[345984824,1734599440496,-150.0,0.000227,2]
[345984825,1734599440505,-150.0,0.000227,2]
[345984827,1734599440514,-259.05316,0.00022739,2]
[345984828,1734599440524,-1000.0,0.00022751,2]
[345984829,1734599440536,-150.0,0.000228,2]
[345984830,1734599440545,-364.93,0.000228,2]
[345984831,1734599440554,-150.0,0.000228,2]
[345984832,1734599440563,-436.03,0.000228,2]
[345984834,1734599440572,-151.6,0.000228,2]
[345984836,1734599440582,-976.54,0.000228,2]
[345984837,1734599440592,-976.54,0.000228,2]
[345984838,1734599440601,-436.03,0.000228,2]
[345984839,1734599440611,-364.93,0.000228,2]
[345984840,1734599440620,-31123.8714746,0.00022807,3]
[345984841,1734599440629,-9045.27425266,0.00022807,3]
[345984847,1734599442976,-8596.68115644,0.00022807,3]
[345984848,1734599442986,-495.57,0.00022807,2]
[345984849,1734599442995,-509.43,0.00022807,2]
[345984850,1734599443004,-500.88,0.00022807,2]
[345984851,1734599443013,-502.13,0.00022807,2]
[345984852,1734599443023,-504.04,0.00022807,2]
[345984854,1734599443033,-499.99,0.00022807,2]
[345984855,1734599443042,-506.72,0.00022807,2]
[345984856,1734599443051,-505.87,0.00022807,2]
[345984857,1734599443060,-507.4,0.00022807,2]
[345984858,1734599443069,-496.53,0.00022807,2]
[345984859,1734599443078,-498.0,0.00022807,2]
[345984860,1734599443087,-496.87,0.00022807,2]
[345984861,1734599443097,-493.04,0.00022828,2]
[345984862,1734599443107,-4000.0,0.00022866,2]
[345984863,1734599443116,-506.2,0.00022879,2]
[345984864,1734599443125,-500.77,0.00022879,2]
[345984865,1734599443134,-503.35,0.00022879,2]
[345984866,1734599443143,-503.0,0.00022879,2]
[345984867,1734599443152,-251.52884356,0.00022879,2]
[345984873,1734599760765,-2000.0,0.00024222,120]
[345984874,1734599760799,-200.0,0.00024222,120]
[345984875,1734599804354,-150.0,0.00024786,120]
[345984876,1734599821050,-486.19,0.00024803,120]
[345984877,1734599836397,-4238.9822449,0.00025,90]
[345984878,1734599836433,-1100.0,0.00025,120]
[345984879,1734599836466,-815.3102173,0.00025,120]
[345984880,1734599836500,-3450.0,0.00025,120]
[345984881,1734599836535,-30980.64063754,0.00025,120]
[345984882,1734600023925,3000.0,0.00025,120]
[345984883,1734600037077,2002.54,0.00025,120]
[345984884,1734600138280,133155.21380052,0.0002501,90]
[345984885,1734600153642,21355.11306311,0.000235,120]
[345984886,1734600153683,64190.67313637,0.000235,120]
[345984887,1734600329032,150.2,0.00010137,2]
[345984888,1734600329250,150.2,0.00016813,2]
[345984890,1734600354370,186.56,0.00016712,2]
[345984900,1734600481732,21764.48858111,0.00013,2]
[345984913,1734600632261,-252.0,0.0002,3]
[345984914,1734600632272,-291.4129937,0.0002,2]
[345984918,1734600637868,-1355.173635,0.0002,2]
[345984919,1734600637982,-1353.9033713,0.0002,2]
[345984920,1734600637992,-500.0,0.00020068,2]
[345984921,1734600638003,-151.18606228,0.00020131,2]
[345984922,1734600638039,-1052.97393772,0.00020131,2]
[345984923,1734600638049,-1013.9,0.00021013,2]
[345984924,1734600638058,-300.0,0.00021119,2]
[345984925,1734600638066,-1232.23699842,0.0002112,2]
[345984929,1734600639973,-560.9,0.0002112,2]
[345984930,1734600640031,-2144.6,0.0002112,2]
[345984937,1734600642970,-40663.58328906,0.0002112,2]
[345984938,1734600643140,-12466.67971252,0.0002112,2]
[345984939,1734600643150,-500.0,0.00021164,2]
[345984940,1734600643160,-500.0,0.00021164,2]
[345984941,1734600643169,-203.44,0.000215,2]
[345984942,1734600643179,-153.0,0.00021904,2]
[345984943,1734600643189,-153.0,0.00021904,2]
[345984944,1734600643198,-153.0,0.00021904,2]
[345984945,1734600643207,-153.0,0.00021904,2]
[345984946,1734600643217,-153.0,0.00021904,2]
[345984947,1734600643228,-976.54,0.00021978,2]
[345984948,1734600643237,-150.0,0.00021978,2]
[345984949,1734600643246,-436.03,0.00021978,2]
[345984950,1734600643256,-150.0,0.00021978,2]
[345984951,1734600643265,-150.0,0.00021978,2]
[345984952,1734600643274,-364.93,0.00021978,2]
[345984953,1734600643283,-150.0,0.00021978,2]
[345984954,1734600643293,-150.0,0.00021978,2]
[345984955,1734600643302,-150.0,0.00021978,2]
[345984956,1734600643311,-976.54,0.00021978,2]
[345984957,1734600643321,-150.0,0.00021978,2]
[345984958,1734600643330,-150.0,0.00021978,2]
[345984959,1734600643339,-436.03,0.00021978,2]
[345984960,1734600643349,-150.0,0.00021978,2]
[345984961,1734600643358,-150.0,0.00021978,2]
[345984962,1734600643368,-150.0,0.00021978,2]
[345984963,1734600643377,-150.0,0.00021978,2]
[345984964,1734600643387,-364.93,0.00021978,2]
[345984965,1734600643397,-364.93,0.00021978,2]
[345984966,1734600643406,-150.0,0.00021978,2]
[345984967,1734600643416,-976.54,0.00021978,2]
[345984968,1734600643425,-150.0,0.00021978,2]
[345984969,1734600643434,-436.03,0.00021978,2]
[345984970,1734600643443,-150.0,0.00021978,2]
[345984971,1734600643451,-6375.58028748,0.00022,2]
[345984972,1734600643463,-16308.0,0.00022,2]
[345984974,1734600645973,-838.4,0.00022,2]
[345984975,1734600646144,-10210.56347102,0.00022,2]
[345984984,1734601053675,450.0,0.00013,2]
[345984985,1734601054755,500.0,0.00015,2]
[345984986,1734601055831,550.0,0.00017,2]
[345984996,1734601266893,158.93,0.00016617,2]
[345984997,1734601315961,23578.21731558,0.00018,2]
[345984999,1734601335656,174.02,0.00010137,2]
[345985000,1734601336086,174.02,0.00016813,2]
[345985001,1734601368463,300.87739216,0.000235,90]
[345985002,1734601370978,186.52,0.00016712,2]
[345985003,1734601580210,-600.0,0.00019,2]
[345985004,1734601580230,-943.43137135,0.000192,2]
[345985010,1734601718009,1064.40764348,0.000225,30]
[345985018,1734601832129,-1100.0,0.00018972,2]
[345985019,1734601832139,-159.43947799,0.00019174,2]
[345985020,1734601832148,-600.0,0.00019187,2]
[345985021,1734601832158,-3152.57540548,0.00019274,2]
[345985022,1734601832242,-2601.2,0.00019274,2]
[345985023,1734601832255,-5159.06954372,0.00019274,2]
[345985024,1734601832265,-7244.9170335,0.00019287,2]
[345985025,1734601832274,-575.69182954,0.000194,2]
[345985026,1734601832284,-1203.47,0.00019444,2]
[345985027,1734601832294,-1500.0,0.00019859,2]
[345985028,1734601832304,-1500.0,0.00020015,2]
[345985029,1734601832313,-150.0,0.00020027,2]
[345985030,1734601832322,-1100.0,0.00020068,2]
[345985031,1734601832332,-500.0,0.00020068,2]
[345985032,1734601832342,-1077.01,0.00020131,2]
[345985033,1734601832351,-956.55,0.00020141,2]
[345985034,1734601832361,-8963.83528527,0.00020169,2]
[345985035,1734601832373,-2304.32471473,0.00020169,2]
[345985036,1734601832382,-300.0,0.00020235,2]
[345985037,1734601832392,-1500.0,0.00020342,2]
[345985038,1734601832401,-1000.0,0.00020361,2]
[345985039,1734601832410,-1500.0,0.00020368,2]
[345985040,1734601832419,-162.47,0.00020399,2]
[345985041,1734601832429,-1906.26,0.00020488,2]
[345985042,1734601832438,-16508.43985519,0.00020548,2]
[345985043,1734601832456,-543.3596604,0.00020548,2]
[345985044,1734601832467,-738.00677387,0.00020548,2]
[345985045,1734601832480,-1196.06391243,0.00020548,2]
[345985046,1734601832491,-1259.99999995,0.00020548,2]
[345985047,1734601832502,-152.73979816,0.00020548,2]
[345985048,1734601832511,-1500.0,0.00020568,2]
[345985049,1734601832520,-1164.10421113,0.0002062,2]
[345985050,1734601832538,-335.89578887,0.0002062,2]
[345985051,1734601832547,-249.14421113,0.00020644,2]
[345985058,1734601838106,-573.45,0.00020644,2]
[345985059,1734601838219,-10366.37801371,0.00020644,2]
[345985060,1734601838276,-6457.77031918,0.00020644,2]
[345985061,1734601838291,-2791.06187367,0.00020644,2]
[345985062,1734601838308,-999.29983164,0.00020644,2]
[345985063,1734601840027,-576.0,0.00020644,2]
[345985064,1734601840086,-1886.89575067,0.00020644,2]
[345985065,1734601840098,-573.45,0.00020664,2]
[345985066,1734601840109,-158.55,0.00020764,2]
[345985067,1734601840119,-1396.2,0.00020822,2]
[345985068,1734601840130,-1077.01,0.00020876,2]
[345985069,1734601840140,-250.0,0.00020889,2]
[345985070,1734601840151,-168.68,0.00020987,2]
[345985071,1734601840161,-250.0,0.00021043,2]
[345985072,1734601840170,-1100.0,0.00021164,2]
[345985073,1734601840180,-500.0,0.00021164,2]
[345985074,1734601840191,-1952.73,0.00021225,2]
[345985075,1734601840200,-1500.0,0.00021247,2]
[345985076,1734601840212,-5021.52,0.0002137,2]
[345985077,1734601840224,-150.0,0.00021456,2]
[345985078,1734601840237,-436.03,0.00021478,2]
[345985079,1734601840250,-1167.96,0.00021478,2]
[345985080,1734601840260,-150.0,0.00021478,2]
[345985081,1734601840269,-150.0,0.00021478,2]
[345985082,1734601840279,-364.93,0.00021478,2]
[345985083,1734601840291,-151.07,0.00021569,2]
[345985084,1734601840301,-1396.2,0.00021592,2]
[345985085,1734601840311,-1077.01,0.00021621,2]
[345985086,1734601840323,-3855.5314,0.00021632,2]
[345985087,1734601840333,-749.69,0.00021651,2]
[345985088,1734601840344,-151.22,0.00021656,2]
[345985089,1734601840356,-436.03,0.00021656,2]
[345985090,1734601840366,-976.54,0.00021656,2]
[345985091,1734601840376,-150.0,0.00021656,2]
[345985092,1734601840386,-165.85,0.00021656,2]
[345985093,1734601840396,-976.54,0.00021678,2]
[345985094,1734601840407,-436.03,0.00021678,2]
[345985095,1734601840417,-150.0,0.00021678,2]
[345985096,1734601840428,-364.93,0.00021678,2]
[345985097,1734601840439,-150.0,0.00021678,2]
[345985098,1734601840451,-3804.47014686,0.000217,2]
[345985099,1734601840461,-1203.47,0.00021708,2]
[345985100,1734601840471,-109163.09408693,0.00021719,3]
[345985101,1734601840482,-15454.8357615,0.00021719,3]
[345985102,1734601840492,-21169.32,0.00021719,2]
[345985103,1734601840503,-421.89,0.0002174,2]
[345985104,1734601840513,-500.0,0.00021773,2]
[345985105,1734601840523,-500.0,0.00021773,2]
[345985106,1734601840533,-297.4,0.0002178,2]
[345985107,1734601840543,-297.4,0.0002178,2]
[345985108,1734601840553,-411.41594841,0.00021796,2]
[345985109,1734601840563,-7500.0,0.00021799,2]
[345985110,1734601840574,-1972.0,0.000218,3]
[345985111,1734601840584,-1246.55,0.0002186,4]
[345985112,1734601840594,-153.0,0.00021888,2]
[345985113,1734601840605,-38408.3477,0.000219,2]
[345985114,1734601840616,-297.4,0.000219,2]
[345985115,1734601840626,-297.4,0.000219,2]
[345985116,1734601840637,-297.4,0.000219,2]
[345985117,1734601840648,-297.4,0.000219,2]
[345985118,1734601840658,-310.70960874,0.000219,2]
[345985119,1734601840669,-500.0,0.00021917,4]
[345985120,1734601840679,-500.0,0.00021917,4]
[345985121,1734601840689,-500.0,0.00021917,4]
[345985122,1734601840699,-500.0,0.00021917,4]
[345985123,1734601840709,-500.0,0.00021917,4]
[345985124,1734601840719,-500.0,0.00021917,4]
[345985125,1734601840730,-532.29,0.00021917,4]
[345985126,1734601840740,-500.0,0.00021917,4]
[345985127,1734601840751,-772.39,0.00021917,4]
[345985128,1734601840761,-500.0,0.00021917,4]
[345985129,1734601840771,-500.0,0.00021917,4]
[345985130,1734601840782,-320.15925986,0.00021917,4]
[345985131,1734601840792,-500.0,0.00021917,4]
[345985132,1734601840803,-500.0,0.00021917,4]
[345985133,1734601840812,-500.0,0.00021917,4]
[345985134,1734601840823,-500.0,0.00021917,4]
[345985135,1734601840833,-500.0,0.00021917,4]
[345985136,1734601840843,-500.0,0.00021917,4]
[345985137,1734601840853,-500.0,0.00021917,4]
[345985138,1734601840864,-158.091579,0.00021917,4]
[345985139,1734601840874,-500.0,0.00021917,4]
[345985140,1734601840884,-500.0,0.00021917,4]
[345985141,1734601840894,-500.0,0.00021917,4]